{"text_format":"3","workbook":"xlsx","n_sheets":3,"sheets":["Quilometragem","Dados de Log","cálculos"],"not_rendered":{"charts":1,"defined_names":17},"read":"whole","date_system":"1900"}

{"sheet":"Quilometragem","index":0,"n_rows":29,"n_cols":5,"rows_kept":29,"merged":[[0,1,1,4]]}
[null,"LOG DE MILHAGEM"]
{"$rows_empty":9}
[null,null,"REEMBOLSÁVEIS",null,"TOTAL"]
[null,null,"MILHAS",null,"REEMBOLSO"]
[]
[]
[]
[]
[null,null,"2012-05-01",null,"2012-05-10"]
[]
[null,null,"PERÍODO",null,"PERÍODO"]
[null,null,"INÍCIO",null,"TÉRMINO"]
[]
[]
[]
[]
[]
[null,null,54,null,{"v":9800,"d":"9,800"}]
[]
[null,null,"REEMBOLSO",null,"COMBUSTÍVEL ANTERIOR"]
[null,null,"¢/Milha",null,"ODÔMETRO"]

{"sheet":"Dados de Log","index":1,"n_rows":19,"n_cols":15,"rows_kept":19,"merged":[[0,1,1,4]]}
[null,"LOG DE MILHAGEM"]
[{"$nulls":14}," "]
[]
[]
[null,"DATA","ATIVIDADE","ODÔM. 1","LOCAL","ODÔM. 2","DESTINO","REEMBOLSAR","GALÕES","CUSTO","MILHAS","Milhas por Galão","¢/MILHA","OBSERVAÇÕES"]
[null,"2012-05-01","Viagem",{"v":10123,"d":"10,123"},"Chevron - Main St",{"v":10130,"d":"10,130"},null,null,15.56,{"v":64.11,"d":"R$ 64.11"},{"$f":"milhas","v":7},{"$f":"IF(OR(LEN(dados[[#This Row],[ODÔM. 2]]),dados[[#This Row],[ODÔM. 1]]=\"\"),\"\",IFERROR(dados[[#This Row],[MILHAS]]/dados[[#This Row],[GALÕES]],\"\"))","v":""},{"$f":"IF(dados[[#This Row],[Milhas por Galão]]=\"\",\"\",100*dados[[#This Row],[CUSTO]]/dados[[#This Row],[MILHAS]])","v":""}]
[null,"2012-05-01","Viagem",{"v":10130,"d":"10,130"},"Office",{"v":10200,"d":"10,200"},"Rua das Cerejeiras","Sim",null,"",{"$f":"milhas","v":70},{"$f":"IF(OR(LEN(dados[[#This Row],[ODÔM. 2]]),dados[[#This Row],[ODÔM. 1]]=\"\"),\"\",IFERROR(dados[[#This Row],[MILHAS]]/dados[[#This Row],[GALÕES]],\"\"))","v":""},{"$f":"IF(dados[[#This Row],[Milhas por Galão]]=\"\",\"\",100*dados[[#This Row],[CUSTO]]/dados[[#This Row],[MILHAS]])","v":""}]
[null,"2012-05-01","Viagem",{"v":10200,"d":"10,200"},"Smithfields",{"v":10285,"d":"10,285"},"Office","Sim",null,"",{"$f":"milhas","v":85},{"$f":"IF(OR(LEN(dados[[#This Row],[ODÔM. 2]]),dados[[#This Row],[ODÔM. 1]]=\"\"),\"\",IFERROR(dados[[#This Row],[MILHAS]]/dados[[#This Row],[GALÕES]],\"\"))","v":""},{"$f":"IF(dados[[#This Row],[Milhas por Galão]]=\"\",\"\",100*dados[[#This Row],[CUSTO]]/dados[[#This Row],[MILHAS]])","v":""}]
[null,"2012-05-02","Viagem",{"v":10285,"d":"10,285"},"Office",{"v":10450,"d":"10,450"},"Vinhedo de Colo","Sim",null,"",{"$f":"milhas","v":165},{"$f":"IF(OR(LEN(dados[[#This Row],[ODÔM. 2]]),dados[[#This Row],[ODÔM. 1]]=\"\"),\"\",IFERROR(dados[[#This Row],[MILHAS]]/dados[[#This Row],[GALÕES]],\"\"))","v":""},{"$f":"IF(dados[[#This Row],[Milhas por Galão]]=\"\",\"\",100*dados[[#This Row],[CUSTO]]/dados[[#This Row],[MILHAS]])","v":""}]
[null,"2012-05-02","Combustível",{"v":10450,"d":"10,450"},"Shell",{"$nulls":3},{"v":11.2,"d":"11.20"},{"v":55.42,"d":"R$ 55.42"},{"$f":"milhas","v":650},{"$f":"IF(OR(LEN(dados[[#This Row],[ODÔM. 2]]),dados[[#This Row],[ODÔM. 1]]=\"\"),\"\",IFERROR(dados[[#This Row],[MILHAS]]/dados[[#This Row],[GALÕES]],\"\"))","v":{"v":58.03571428571429,"d":"58.0"}},{"$f":"IF(dados[[#This Row],[Milhas por Galão]]=\"\",\"\",100*dados[[#This Row],[CUSTO]]/dados[[#This Row],[MILHAS]])","v":{"v":8.526153846153846,"d":"8.5"}}]
[null,"2012-05-02","Viagem",{"v":10500,"d":"10,500"},"Vinhedo de Colo",{"v":10518,"d":"10,518"},"Office","Sim",null,"",{"$f":"milhas","v":18},{"$f":"IF(OR(LEN(dados[[#This Row],[ODÔM. 2]]),dados[[#This Row],[ODÔM. 1]]=\"\"),\"\",IFERROR(dados[[#This Row],[MILHAS]]/dados[[#This Row],[GALÕES]],\"\"))","v":""},{"$f":"IF(dados[[#This Row],[Milhas por Galão]]=\"\",\"\",100*dados[[#This Row],[CUSTO]]/dados[[#This Row],[MILHAS]])","v":""}]
[null,"2012-05-03","Viagem",{"v":10518,"d":"10,518"},"Office",{"v":10745,"d":"10,745"},"Office","Sim",null,"",{"$f":"milhas","v":227},{"$f":"IF(OR(LEN(dados[[#This Row],[ODÔM. 2]]),dados[[#This Row],[ODÔM. 1]]=\"\"),\"\",IFERROR(dados[[#This Row],[MILHAS]]/dados[[#This Row],[GALÕES]],\"\"))","v":""},{"$f":"IF(dados[[#This Row],[Milhas por Galão]]=\"\",\"\",100*dados[[#This Row],[CUSTO]]/dados[[#This Row],[MILHAS]])","v":""}]
[null,"2012-05-04","Combustível",{"v":10745,"d":"10,745"},"Chevron - Main St",{"$nulls":3},{"v":16.6,"d":"16.60"},{"v":69.24,"d":"R$ 69.24"},{"$f":"milhas","v":295},{"$f":"IF(OR(LEN(dados[[#This Row],[ODÔM. 2]]),dados[[#This Row],[ODÔM. 1]]=\"\"),\"\",IFERROR(dados[[#This Row],[MILHAS]]/dados[[#This Row],[GALÕES]],\"\"))","v":{"v":17.771084337349397,"d":"17.8"}},{"$f":"IF(dados[[#This Row],[Milhas por Galão]]=\"\",\"\",100*dados[[#This Row],[CUSTO]]/dados[[#This Row],[MILHAS]])","v":{"v":23.471186440677965,"d":"23.5"}}]
[null,"2012-05-04","Viagem",{"v":10745,"d":"10,745"},"Office",{"v":10800,"d":"10,800"},"Porterville","Sim",null,"",{"$f":"milhas","v":55},{"$f":"IF(OR(LEN(dados[[#This Row],[ODÔM. 2]]),dados[[#This Row],[ODÔM. 1]]=\"\"),\"\",IFERROR(dados[[#This Row],[MILHAS]]/dados[[#This Row],[GALÕES]],\"\"))","v":""},{"$f":"IF(dados[[#This Row],[Milhas por Galão]]=\"\",\"\",100*dados[[#This Row],[CUSTO]]/dados[[#This Row],[MILHAS]])","v":""}]
[null,"2012-05-04","Viagem",{"v":10800,"d":"10,800"},"Porterville",{"v":10875,"d":"10,875"},"Office","Sim",null,"",{"$f":"milhas","v":75},{"$f":"IF(OR(LEN(dados[[#This Row],[ODÔM. 2]]),dados[[#This Row],[ODÔM. 1]]=\"\"),\"\",IFERROR(dados[[#This Row],[MILHAS]]/dados[[#This Row],[GALÕES]],\"\"))","v":""},{"$f":"IF(dados[[#This Row],[Milhas por Galão]]=\"\",\"\",100*dados[[#This Row],[CUSTO]]/dados[[#This Row],[MILHAS]])","v":""}]
[null,"2012-05-07","Viagem",{"v":10875,"d":"10,875"},"Office",{"v":10921,"d":"10,921"},"Rua das Cerejeiras","Sim",null,"",{"$f":"milhas","v":46},{"$f":"IF(OR(LEN(dados[[#This Row],[ODÔM. 2]]),dados[[#This Row],[ODÔM. 1]]=\"\"),\"\",IFERROR(dados[[#This Row],[MILHAS]]/dados[[#This Row],[GALÕES]],\"\"))","v":""},{"$f":"IF(dados[[#This Row],[Milhas por Galão]]=\"\",\"\",100*dados[[#This Row],[CUSTO]]/dados[[#This Row],[MILHAS]])","v":""}]
[null,"2012-05-07","Viagem",{"v":10921,"d":"10,921"},"Smithfields",{"v":10969,"d":"10,969"},"Office","Sim",null,"",{"$f":"milhas","v":48},{"$f":"IF(OR(LEN(dados[[#This Row],[ODÔM. 2]]),dados[[#This Row],[ODÔM. 1]]=\"\"),\"\",IFERROR(dados[[#This Row],[MILHAS]]/dados[[#This Row],[GALÕES]],\"\"))","v":""},{"$f":"IF(dados[[#This Row],[Milhas por Galão]]=\"\",\"\",100*dados[[#This Row],[CUSTO]]/dados[[#This Row],[MILHAS]])","v":""}]
[null,"2012-05-09","Viagem",{"v":10969,"d":"10,969"},"Office",{"v":11000,"d":"11,000"},"Riverside","Sim",null,"",{"$f":"milhas","v":31},{"$f":"IF(OR(LEN(dados[[#This Row],[ODÔM. 2]]),dados[[#This Row],[ODÔM. 1]]=\"\"),\"\",IFERROR(dados[[#This Row],[MILHAS]]/dados[[#This Row],[GALÕES]],\"\"))","v":""},{"$f":"IF(dados[[#This Row],[Milhas por Galão]]=\"\",\"\",100*dados[[#This Row],[CUSTO]]/dados[[#This Row],[MILHAS]])","v":""}]
[null,"2012-05-09","Viagem",{"v":11000,"d":"11,000"},"Riverside",{"v":11100,"d":"11,100"},"Casa","Não",null,"",{"$f":"milhas","v":100},{"$f":"IF(OR(LEN(dados[[#This Row],[ODÔM. 2]]),dados[[#This Row],[ODÔM. 1]]=\"\"),\"\",IFERROR(dados[[#This Row],[MILHAS]]/dados[[#This Row],[GALÕES]],\"\"))","v":""},{"$f":"IF(dados[[#This Row],[Milhas por Galão]]=\"\",\"\",100*dados[[#This Row],[CUSTO]]/dados[[#This Row],[MILHAS]])","v":""}]

{"sheet":"cálculos","index":2,"n_rows":69,"n_cols":13,"rows_kept":69,"hidden":true}
["*** Esta planilha deve permanecer oculta ***"]
[]
[]
[]
[]
[{"$nulls":8},{"$f":"OFFSET(I9,,segundoEixo=\"Preço do Combustível\")","v":"¢/Milha"}]
[{"$nulls":12},2]
[{"$nulls":7},"Viagem","Combustível","Combustível",null,"Segundo Eixo:  ",{"$f":"REPT(\"Milhas por Galão\",M7=1)&REPT(\"Preço do Combustível\",M7=2)","v":"Preço do Combustível"}]
[{"$nulls":7},"Milhas Dirigidas","Milhas por Galão","¢/Milha"]
[null,null,"Milhas Reembolsáveis:  ",{"$f":"SUMIFS(dados[MILHAS],dados[REEMBOLSAR],\"Sim\",dados[DATA],\">=\"&Iníciodoperíodo,dados[DATA],\"<=\"&Finaldoperíodo)","v":820},null,1,{"$f":"Iníciodoperíodo","v":"2012-05-01"},{"$f":"SUMIFS(dados[MILHAS],dados[DATA],G10,dados[ATIVIDADE],$H$8)","v":162},{"$f":"IFERROR(AVERAGEIFS(dados[Milhas por Galão],dados[DATA],G10,dados[ATIVIDADE],$I$8),NA())","v":{"$error":"#N/A"}},{"$f":"IFERROR(AVERAGEIFS(dados[¢/MILHA],dados[DATA],G10,dados[ATIVIDADE],$J$8),NA())","v":{"$error":"#N/A"}}]
[null,null,"Total para Reembolso:  ",{"$f":"D10*ReembolsoporMilha/100","v":{"v":442.8,"d":"R$ 442.80"}},null,2,{"$f":"G10+1","v":"2012-05-02"},{"$f":"SUMIFS(dados[MILHAS],dados[DATA],G11,dados[ATIVIDADE],$H$8)","v":183},{"$f":"IFERROR(AVERAGEIFS(dados[Milhas por Galão],dados[DATA],G11,dados[ATIVIDADE],$I$8),NA())","v":{"v":58.03571428571429,"d":"58.0"}},{"$f":"IFERROR(AVERAGEIFS(dados[¢/MILHA],dados[DATA],G11,dados[ATIVIDADE],$J$8),NA())","v":{"v":8.526153846153846,"d":"8.5"}}]
[{"$nulls":5},3,"2012-05-03",{"$f":"SUMIFS(dados[MILHAS],dados[DATA],G12,dados[ATIVIDADE],$H$8)","v":227},{"$f":"IFERROR(AVERAGEIFS(dados[Milhas por Galão],dados[DATA],G12,dados[ATIVIDADE],$I$8),NA())","v":{"$error":"#N/A"}},{"$f":"IFERROR(AVERAGEIFS(dados[¢/MILHA],dados[DATA],G12,dados[ATIVIDADE],$J$8),NA())","v":{"$error":"#N/A"}}]
[{"$nulls":5},4,"2012-05-04",{"$f":"SUMIFS(dados[MILHAS],dados[DATA],G13,dados[ATIVIDADE],$H$8)","v":130},{"$f":"IFERROR(AVERAGEIFS(dados[Milhas por Galão],dados[DATA],G13,dados[ATIVIDADE],$I$8),NA())","v":{"v":17.771084337349397,"d":"17.8"}},{"$f":"IFERROR(AVERAGEIFS(dados[¢/MILHA],dados[DATA],G13,dados[ATIVIDADE],$J$8),NA())","v":{"v":23.471186440677965,"d":"23.5"}}]
[{"$nulls":5},5,"2012-05-05",{"$f":"SUMIFS(dados[MILHAS],dados[DATA],G14,dados[ATIVIDADE],$H$8)","v":0},{"$f":"IFERROR(AVERAGEIFS(dados[Milhas por Galão],dados[DATA],G14,dados[ATIVIDADE],$I$8),NA())","v":{"$error":"#N/A"}},{"$f":"IFERROR(AVERAGEIFS(dados[¢/MILHA],dados[DATA],G14,dados[ATIVIDADE],$J$8),NA())","v":{"$error":"#N/A"}}]
[{"$nulls":5},6,"2012-05-06",{"$f":"SUMIFS(dados[MILHAS],dados[DATA],G15,dados[ATIVIDADE],$H$8)","v":0},{"$f":"IFERROR(AVERAGEIFS(dados[Milhas por Galão],dados[DATA],G15,dados[ATIVIDADE],$I$8),NA())","v":{"$error":"#N/A"}},{"$f":"IFERROR(AVERAGEIFS(dados[¢/MILHA],dados[DATA],G15,dados[ATIVIDADE],$J$8),NA())","v":{"$error":"#N/A"}}]
[{"$nulls":5},7,"2012-05-07",{"$f":"SUMIFS(dados[MILHAS],dados[DATA],G16,dados[ATIVIDADE],$H$8)","v":94},{"$f":"IFERROR(AVERAGEIFS(dados[Milhas por Galão],dados[DATA],G16,dados[ATIVIDADE],$I$8),NA())","v":{"$error":"#N/A"}},{"$f":"IFERROR(AVERAGEIFS(dados[¢/MILHA],dados[DATA],G16,dados[ATIVIDADE],$J$8),NA())","v":{"$error":"#N/A"}}]
[{"$nulls":5},8,"2012-05-08",{"$f":"SUMIFS(dados[MILHAS],dados[DATA],G17,dados[ATIVIDADE],$H$8)","v":0},{"$f":"IFERROR(AVERAGEIFS(dados[Milhas por Galão],dados[DATA],G17,dados[ATIVIDADE],$I$8),NA())","v":{"$error":"#N/A"}},{"$f":"IFERROR(AVERAGEIFS(dados[¢/MILHA],dados[DATA],G17,dados[ATIVIDADE],$J$8),NA())","v":{"$error":"#N/A"}}]
[{"$nulls":5},9,"2012-05-09",{"$f":"SUMIFS(dados[MILHAS],dados[DATA],G18,dados[ATIVIDADE],$H$8)","v":131},{"$f":"IFERROR(AVERAGEIFS(dados[Milhas por Galão],dados[DATA],G18,dados[ATIVIDADE],$I$8),NA())","v":{"$error":"#N/A"}},{"$f":"IFERROR(AVERAGEIFS(dados[¢/MILHA],dados[DATA],G18,dados[ATIVIDADE],$J$8),NA())","v":{"$error":"#N/A"}}]
[{"$nulls":5},10,"2012-05-10",{"$f":"SUMIFS(dados[MILHAS],dados[DATA],G19,dados[ATIVIDADE],$H$8)","v":0},{"$f":"IFERROR(AVERAGEIFS(dados[Milhas por Galão],dados[DATA],G19,dados[ATIVIDADE],$I$8),NA())","v":{"$error":"#N/A"}},{"$f":"IFERROR(AVERAGEIFS(dados[¢/MILHA],dados[DATA],G19,dados[ATIVIDADE],$J$8),NA())","v":{"$error":"#N/A"}}]
[{"$nulls":5},11,"2012-05-11",{"$f":"SUMIFS(dados[MILHAS],dados[DATA],G20,dados[ATIVIDADE],$H$8)","v":0},{"$f":"IFERROR(AVERAGEIFS(dados[Milhas por Galão],dados[DATA],G20,dados[ATIVIDADE],$I$8),NA())","v":{"$error":"#N/A"}},{"$f":"IFERROR(AVERAGEIFS(dados[¢/MILHA],dados[DATA],G20,dados[ATIVIDADE],$J$8),NA())","v":{"$error":"#N/A"}}]
[{"$nulls":5},12,"2012-05-12",{"$f":"SUMIFS(dados[MILHAS],dados[DATA],G21,dados[ATIVIDADE],$H$8)","v":0},{"$f":"IFERROR(AVERAGEIFS(dados[Milhas por Galão],dados[DATA],G21,dados[ATIVIDADE],$I$8),NA())","v":{"$error":"#N/A"}},{"$f":"IFERROR(AVERAGEIFS(dados[¢/MILHA],dados[DATA],G21,dados[ATIVIDADE],$J$8),NA())","v":{"$error":"#N/A"}}]
[{"$nulls":5},13,"2012-05-13",{"$f":"SUMIFS(dados[MILHAS],dados[DATA],G22,dados[ATIVIDADE],$H$8)","v":0},{"$f":"IFERROR(AVERAGEIFS(dados[Milhas por Galão],dados[DATA],G22,dados[ATIVIDADE],$I$8),NA())","v":{"$error":"#N/A"}},{"$f":"IFERROR(AVERAGEIFS(dados[¢/MILHA],dados[DATA],G22,dados[ATIVIDADE],$J$8),NA())","v":{"$error":"#N/A"}}]
[{"$nulls":5},14,"2012-05-14",{"$f":"SUMIFS(dados[MILHAS],dados[DATA],G23,dados[ATIVIDADE],$H$8)","v":0},{"$f":"IFERROR(AVERAGEIFS(dados[Milhas por Galão],dados[DATA],G23,dados[ATIVIDADE],$I$8),NA())","v":{"$error":"#N/A"}},{"$f":"IFERROR(AVERAGEIFS(dados[¢/MILHA],dados[DATA],G23,dados[ATIVIDADE],$J$8),NA())","v":{"$error":"#N/A"}}]
[{"$nulls":5},15,"2012-05-15",{"$f":"SUMIFS(dados[MILHAS],dados[DATA],G24,dados[ATIVIDADE],$H$8)","v":0},{"$f":"IFERROR(AVERAGEIFS(dados[Milhas por Galão],dados[DATA],G24,dados[ATIVIDADE],$I$8),NA())","v":{"$error":"#N/A"}},{"$f":"IFERROR(AVERAGEIFS(dados[¢/MILHA],dados[DATA],G24,dados[ATIVIDADE],$J$8),NA())","v":{"$error":"#N/A"}}]
[{"$nulls":5},16,"2012-05-16",{"$f":"SUMIFS(dados[MILHAS],dados[DATA],G25,dados[ATIVIDADE],$H$8)","v":0},{"$f":"IFERROR(AVERAGEIFS(dados[Milhas por Galão],dados[DATA],G25,dados[ATIVIDADE],$I$8),NA())","v":{"$error":"#N/A"}},{"$f":"IFERROR(AVERAGEIFS(dados[¢/MILHA],dados[DATA],G25,dados[ATIVIDADE],$J$8),NA())","v":{"$error":"#N/A"}}]
[{"$nulls":5},17,"2012-05-17",{"$f":"SUMIFS(dados[MILHAS],dados[DATA],G26,dados[ATIVIDADE],$H$8)","v":0},{"$f":"IFERROR(AVERAGEIFS(dados[Milhas por Galão],dados[DATA],G26,dados[ATIVIDADE],$I$8),NA())","v":{"$error":"#N/A"}},{"$f":"IFERROR(AVERAGEIFS(dados[¢/MILHA],dados[DATA],G26,dados[ATIVIDADE],$J$8),NA())","v":{"$error":"#N/A"}}]
[{"$nulls":5},18,"2012-05-18",{"$f":"SUMIFS(dados[MILHAS],dados[DATA],G27,dados[ATIVIDADE],$H$8)","v":0},{"$f":"IFERROR(AVERAGEIFS(dados[Milhas por Galão],dados[DATA],G27,dados[ATIVIDADE],$I$8),NA())","v":{"$error":"#N/A"}},{"$f":"IFERROR(AVERAGEIFS(dados[¢/MILHA],dados[DATA],G27,dados[ATIVIDADE],$J$8),NA())","v":{"$error":"#N/A"}}]
[{"$nulls":5},19,"2012-05-19",{"$f":"SUMIFS(dados[MILHAS],dados[DATA],G28,dados[ATIVIDADE],$H$8)","v":0},{"$f":"IFERROR(AVERAGEIFS(dados[Milhas por Galão],dados[DATA],G28,dados[ATIVIDADE],$I$8),NA())","v":{"$error":"#N/A"}},{"$f":"IFERROR(AVERAGEIFS(dados[¢/MILHA],dados[DATA],G28,dados[ATIVIDADE],$J$8),NA())","v":{"$error":"#N/A"}}]
[{"$nulls":5},20,"2012-05-20",{"$f":"SUMIFS(dados[MILHAS],dados[DATA],G29,dados[ATIVIDADE],$H$8)","v":0},{"$f":"IFERROR(AVERAGEIFS(dados[Milhas por Galão],dados[DATA],G29,dados[ATIVIDADE],$I$8),NA())","v":{"$error":"#N/A"}},{"$f":"IFERROR(AVERAGEIFS(dados[¢/MILHA],dados[DATA],G29,dados[ATIVIDADE],$J$8),NA())","v":{"$error":"#N/A"}}]
[{"$nulls":5},21,"2012-05-21",{"$f":"SUMIFS(dados[MILHAS],dados[DATA],G30,dados[ATIVIDADE],$H$8)","v":0},{"$f":"IFERROR(AVERAGEIFS(dados[Milhas por Galão],dados[DATA],G30,dados[ATIVIDADE],$I$8),NA())","v":{"$error":"#N/A"}},{"$f":"IFERROR(AVERAGEIFS(dados[¢/MILHA],dados[DATA],G30,dados[ATIVIDADE],$J$8),NA())","v":{"$error":"#N/A"}}]
[{"$nulls":5},22,"2012-05-22",{"$f":"SUMIFS(dados[MILHAS],dados[DATA],G31,dados[ATIVIDADE],$H$8)","v":0},{"$f":"IFERROR(AVERAGEIFS(dados[Milhas por Galão],dados[DATA],G31,dados[ATIVIDADE],$I$8),NA())","v":{"$error":"#N/A"}},{"$f":"IFERROR(AVERAGEIFS(dados[¢/MILHA],dados[DATA],G31,dados[ATIVIDADE],$J$8),NA())","v":{"$error":"#N/A"}}]
[{"$nulls":5},23,"2012-05-23",{"$f":"SUMIFS(dados[MILHAS],dados[DATA],G32,dados[ATIVIDADE],$H$8)","v":0},{"$f":"IFERROR(AVERAGEIFS(dados[Milhas por Galão],dados[DATA],G32,dados[ATIVIDADE],$I$8),NA())","v":{"$error":"#N/A"}},{"$f":"IFERROR(AVERAGEIFS(dados[¢/MILHA],dados[DATA],G32,dados[ATIVIDADE],$J$8),NA())","v":{"$error":"#N/A"}}]
[{"$nulls":5},24,"2012-05-24",{"$f":"SUMIFS(dados[MILHAS],dados[DATA],G33,dados[ATIVIDADE],$H$8)","v":0},{"$f":"IFERROR(AVERAGEIFS(dados[Milhas por Galão],dados[DATA],G33,dados[ATIVIDADE],$I$8),NA())","v":{"$error":"#N/A"}},{"$f":"IFERROR(AVERAGEIFS(dados[¢/MILHA],dados[DATA],G33,dados[ATIVIDADE],$J$8),NA())","v":{"$error":"#N/A"}}]
[{"$nulls":5},25,"2012-05-25",{"$f":"SUMIFS(dados[MILHAS],dados[DATA],G34,dados[ATIVIDADE],$H$8)","v":0},{"$f":"IFERROR(AVERAGEIFS(dados[Milhas por Galão],dados[DATA],G34,dados[ATIVIDADE],$I$8),NA())","v":{"$error":"#N/A"}},{"$f":"IFERROR(AVERAGEIFS(dados[¢/MILHA],dados[DATA],G34,dados[ATIVIDADE],$J$8),NA())","v":{"$error":"#N/A"}}]
[{"$nulls":5},26,"2012-05-26",{"$f":"SUMIFS(dados[MILHAS],dados[DATA],G35,dados[ATIVIDADE],$H$8)","v":0},{"$f":"IFERROR(AVERAGEIFS(dados[Milhas por Galão],dados[DATA],G35,dados[ATIVIDADE],$I$8),NA())","v":{"$error":"#N/A"}},{"$f":"IFERROR(AVERAGEIFS(dados[¢/MILHA],dados[DATA],G35,dados[ATIVIDADE],$J$8),NA())","v":{"$error":"#N/A"}}]
[{"$nulls":5},27,"2012-05-27",{"$f":"SUMIFS(dados[MILHAS],dados[DATA],G36,dados[ATIVIDADE],$H$8)","v":0},{"$f":"IFERROR(AVERAGEIFS(dados[Milhas por Galão],dados[DATA],G36,dados[ATIVIDADE],$I$8),NA())","v":{"$error":"#N/A"}},{"$f":"IFERROR(AVERAGEIFS(dados[¢/MILHA],dados[DATA],G36,dados[ATIVIDADE],$J$8),NA())","v":{"$error":"#N/A"}}]
[{"$nulls":5},28,"2012-05-28",{"$f":"SUMIFS(dados[MILHAS],dados[DATA],G37,dados[ATIVIDADE],$H$8)","v":0},{"$f":"IFERROR(AVERAGEIFS(dados[Milhas por Galão],dados[DATA],G37,dados[ATIVIDADE],$I$8),NA())","v":{"$error":"#N/A"}},{"$f":"IFERROR(AVERAGEIFS(dados[¢/MILHA],dados[DATA],G37,dados[ATIVIDADE],$J$8),NA())","v":{"$error":"#N/A"}}]
[{"$nulls":5},29,"2012-05-29",{"$f":"SUMIFS(dados[MILHAS],dados[DATA],G38,dados[ATIVIDADE],$H$8)","v":0},{"$f":"IFERROR(AVERAGEIFS(dados[Milhas por Galão],dados[DATA],G38,dados[ATIVIDADE],$I$8),NA())","v":{"$error":"#N/A"}},{"$f":"IFERROR(AVERAGEIFS(dados[¢/MILHA],dados[DATA],G38,dados[ATIVIDADE],$J$8),NA())","v":{"$error":"#N/A"}}]
[{"$nulls":5},30,"2012-05-30",{"$f":"SUMIFS(dados[MILHAS],dados[DATA],G39,dados[ATIVIDADE],$H$8)","v":0},{"$f":"IFERROR(AVERAGEIFS(dados[Milhas por Galão],dados[DATA],G39,dados[ATIVIDADE],$I$8),NA())","v":{"$error":"#N/A"}},{"$f":"IFERROR(AVERAGEIFS(dados[¢/MILHA],dados[DATA],G39,dados[ATIVIDADE],$J$8),NA())","v":{"$error":"#N/A"}}]
[{"$nulls":5},31,"2012-05-31",{"$f":"SUMIFS(dados[MILHAS],dados[DATA],G40,dados[ATIVIDADE],$H$8)","v":0},{"$f":"IFERROR(AVERAGEIFS(dados[Milhas por Galão],dados[DATA],G40,dados[ATIVIDADE],$I$8),NA())","v":{"$error":"#N/A"}},{"$f":"IFERROR(AVERAGEIFS(dados[¢/MILHA],dados[DATA],G40,dados[ATIVIDADE],$J$8),NA())","v":{"$error":"#N/A"}}]
[{"$nulls":5},32,"2012-06-01",{"$f":"SUMIFS(dados[MILHAS],dados[DATA],G41,dados[ATIVIDADE],$H$8)","v":0},{"$f":"IFERROR(AVERAGEIFS(dados[Milhas por Galão],dados[DATA],G41,dados[ATIVIDADE],$I$8),NA())","v":{"$error":"#N/A"}},{"$f":"IFERROR(AVERAGEIFS(dados[¢/MILHA],dados[DATA],G41,dados[ATIVIDADE],$J$8),NA())","v":{"$error":"#N/A"}}]
[{"$nulls":5},33,"2012-06-02",{"$f":"SUMIFS(dados[MILHAS],dados[DATA],G42,dados[ATIVIDADE],$H$8)","v":0},{"$f":"IFERROR(AVERAGEIFS(dados[Milhas por Galão],dados[DATA],G42,dados[ATIVIDADE],$I$8),NA())","v":{"$error":"#N/A"}},{"$f":"IFERROR(AVERAGEIFS(dados[¢/MILHA],dados[DATA],G42,dados[ATIVIDADE],$J$8),NA())","v":{"$error":"#N/A"}}]
[{"$nulls":5},34,{"$f":"G42+1","v":"2012-06-03"},{"$f":"SUMIFS(dados[MILHAS],dados[DATA],G43,dados[ATIVIDADE],$H$8)","v":0},{"$f":"IFERROR(AVERAGEIFS(dados[Milhas por Galão],dados[DATA],G43,dados[ATIVIDADE],$I$8),NA())","v":{"$error":"#N/A"}},{"$f":"IFERROR(AVERAGEIFS(dados[¢/MILHA],dados[DATA],G43,dados[ATIVIDADE],$J$8),NA())","v":{"$error":"#N/A"}}]
[{"$nulls":5},35,"2012-06-04",{"$f":"SUMIFS(dados[MILHAS],dados[DATA],G44,dados[ATIVIDADE],$H$8)","v":0},{"$f":"IFERROR(AVERAGEIFS(dados[Milhas por Galão],dados[DATA],G44,dados[ATIVIDADE],$I$8),NA())","v":{"$error":"#N/A"}},{"$f":"IFERROR(AVERAGEIFS(dados[¢/MILHA],dados[DATA],G44,dados[ATIVIDADE],$J$8),NA())","v":{"$error":"#N/A"}}]
[{"$nulls":5},36,"2012-06-05",{"$f":"SUMIFS(dados[MILHAS],dados[DATA],G45,dados[ATIVIDADE],$H$8)","v":0},{"$f":"IFERROR(AVERAGEIFS(dados[Milhas por Galão],dados[DATA],G45,dados[ATIVIDADE],$I$8),NA())","v":{"$error":"#N/A"}},{"$f":"IFERROR(AVERAGEIFS(dados[¢/MILHA],dados[DATA],G45,dados[ATIVIDADE],$J$8),NA())","v":{"$error":"#N/A"}}]
[{"$nulls":5},37,"2012-06-06",{"$f":"SUMIFS(dados[MILHAS],dados[DATA],G46,dados[ATIVIDADE],$H$8)","v":0},{"$f":"IFERROR(AVERAGEIFS(dados[Milhas por Galão],dados[DATA],G46,dados[ATIVIDADE],$I$8),NA())","v":{"$error":"#N/A"}},{"$f":"IFERROR(AVERAGEIFS(dados[¢/MILHA],dados[DATA],G46,dados[ATIVIDADE],$J$8),NA())","v":{"$error":"#N/A"}}]
[{"$nulls":5},38,"2012-06-07",{"$f":"SUMIFS(dados[MILHAS],dados[DATA],G47,dados[ATIVIDADE],$H$8)","v":0},{"$f":"IFERROR(AVERAGEIFS(dados[Milhas por Galão],dados[DATA],G47,dados[ATIVIDADE],$I$8),NA())","v":{"$error":"#N/A"}},{"$f":"IFERROR(AVERAGEIFS(dados[¢/MILHA],dados[DATA],G47,dados[ATIVIDADE],$J$8),NA())","v":{"$error":"#N/A"}}]
[{"$nulls":5},39,"2012-06-08",{"$f":"SUMIFS(dados[MILHAS],dados[DATA],G48,dados[ATIVIDADE],$H$8)","v":0},{"$f":"IFERROR(AVERAGEIFS(dados[Milhas por Galão],dados[DATA],G48,dados[ATIVIDADE],$I$8),NA())","v":{"$error":"#N/A"}},{"$f":"IFERROR(AVERAGEIFS(dados[¢/MILHA],dados[DATA],G48,dados[ATIVIDADE],$J$8),NA())","v":{"$error":"#N/A"}}]
[{"$nulls":5},40,"2012-06-09",{"$f":"SUMIFS(dados[MILHAS],dados[DATA],G49,dados[ATIVIDADE],$H$8)","v":0},{"$f":"IFERROR(AVERAGEIFS(dados[Milhas por Galão],dados[DATA],G49,dados[ATIVIDADE],$I$8),NA())","v":{"$error":"#N/A"}},{"$f":"IFERROR(AVERAGEIFS(dados[¢/MILHA],dados[DATA],G49,dados[ATIVIDADE],$J$8),NA())","v":{"$error":"#N/A"}}]
[{"$nulls":5},41,"2012-06-10",{"$f":"SUMIFS(dados[MILHAS],dados[DATA],G50,dados[ATIVIDADE],$H$8)","v":0},{"$f":"IFERROR(AVERAGEIFS(dados[Milhas por Galão],dados[DATA],G50,dados[ATIVIDADE],$I$8),NA())","v":{"$error":"#N/A"}},{"$f":"IFERROR(AVERAGEIFS(dados[¢/MILHA],dados[DATA],G50,dados[ATIVIDADE],$J$8),NA())","v":{"$error":"#N/A"}}]
[{"$nulls":5},42,"2012-06-11",{"$f":"SUMIFS(dados[MILHAS],dados[DATA],G51,dados[ATIVIDADE],$H$8)","v":0},{"$f":"IFERROR(AVERAGEIFS(dados[Milhas por Galão],dados[DATA],G51,dados[ATIVIDADE],$I$8),NA())","v":{"$error":"#N/A"}},{"$f":"IFERROR(AVERAGEIFS(dados[¢/MILHA],dados[DATA],G51,dados[ATIVIDADE],$J$8),NA())","v":{"$error":"#N/A"}}]
[{"$nulls":5},43,"2012-06-12",{"$f":"SUMIFS(dados[MILHAS],dados[DATA],G52,dados[ATIVIDADE],$H$8)","v":0},{"$f":"IFERROR(AVERAGEIFS(dados[Milhas por Galão],dados[DATA],G52,dados[ATIVIDADE],$I$8),NA())","v":{"$error":"#N/A"}},{"$f":"IFERROR(AVERAGEIFS(dados[¢/MILHA],dados[DATA],G52,dados[ATIVIDADE],$J$8),NA())","v":{"$error":"#N/A"}}]
[{"$nulls":5},44,"2012-06-13",{"$f":"SUMIFS(dados[MILHAS],dados[DATA],G53,dados[ATIVIDADE],$H$8)","v":0},{"$f":"IFERROR(AVERAGEIFS(dados[Milhas por Galão],dados[DATA],G53,dados[ATIVIDADE],$I$8),NA())","v":{"$error":"#N/A"}},{"$f":"IFERROR(AVERAGEIFS(dados[¢/MILHA],dados[DATA],G53,dados[ATIVIDADE],$J$8),NA())","v":{"$error":"#N/A"}}]
[{"$nulls":5},45,"2012-06-14",{"$f":"SUMIFS(dados[MILHAS],dados[DATA],G54,dados[ATIVIDADE],$H$8)","v":0},{"$f":"IFERROR(AVERAGEIFS(dados[Milhas por Galão],dados[DATA],G54,dados[ATIVIDADE],$I$8),NA())","v":{"$error":"#N/A"}},{"$f":"IFERROR(AVERAGEIFS(dados[¢/MILHA],dados[DATA],G54,dados[ATIVIDADE],$J$8),NA())","v":{"$error":"#N/A"}}]
[{"$nulls":5},46,"2012-06-15",{"$f":"SUMIFS(dados[MILHAS],dados[DATA],G55,dados[ATIVIDADE],$H$8)","v":0},{"$f":"IFERROR(AVERAGEIFS(dados[Milhas por Galão],dados[DATA],G55,dados[ATIVIDADE],$I$8),NA())","v":{"$error":"#N/A"}},{"$f":"IFERROR(AVERAGEIFS(dados[¢/MILHA],dados[DATA],G55,dados[ATIVIDADE],$J$8),NA())","v":{"$error":"#N/A"}}]
[{"$nulls":5},47,"2012-06-16",{"$f":"SUMIFS(dados[MILHAS],dados[DATA],G56,dados[ATIVIDADE],$H$8)","v":0},{"$f":"IFERROR(AVERAGEIFS(dados[Milhas por Galão],dados[DATA],G56,dados[ATIVIDADE],$I$8),NA())","v":{"$error":"#N/A"}},{"$f":"IFERROR(AVERAGEIFS(dados[¢/MILHA],dados[DATA],G56,dados[ATIVIDADE],$J$8),NA())","v":{"$error":"#N/A"}}]
[{"$nulls":5},48,"2012-06-17",{"$f":"SUMIFS(dados[MILHAS],dados[DATA],G57,dados[ATIVIDADE],$H$8)","v":0},{"$f":"IFERROR(AVERAGEIFS(dados[Milhas por Galão],dados[DATA],G57,dados[ATIVIDADE],$I$8),NA())","v":{"$error":"#N/A"}},{"$f":"IFERROR(AVERAGEIFS(dados[¢/MILHA],dados[DATA],G57,dados[ATIVIDADE],$J$8),NA())","v":{"$error":"#N/A"}}]
[{"$nulls":5},49,"2012-06-18",{"$f":"SUMIFS(dados[MILHAS],dados[DATA],G58,dados[ATIVIDADE],$H$8)","v":0},{"$f":"IFERROR(AVERAGEIFS(dados[Milhas por Galão],dados[DATA],G58,dados[ATIVIDADE],$I$8),NA())","v":{"$error":"#N/A"}},{"$f":"IFERROR(AVERAGEIFS(dados[¢/MILHA],dados[DATA],G58,dados[ATIVIDADE],$J$8),NA())","v":{"$error":"#N/A"}}]
[{"$nulls":5},50,"2012-06-19",{"$f":"SUMIFS(dados[MILHAS],dados[DATA],G59,dados[ATIVIDADE],$H$8)","v":0},{"$f":"IFERROR(AVERAGEIFS(dados[Milhas por Galão],dados[DATA],G59,dados[ATIVIDADE],$I$8),NA())","v":{"$error":"#N/A"}},{"$f":"IFERROR(AVERAGEIFS(dados[¢/MILHA],dados[DATA],G59,dados[ATIVIDADE],$J$8),NA())","v":{"$error":"#N/A"}}]
[{"$nulls":5},51,"2012-06-20",{"$f":"SUMIFS(dados[MILHAS],dados[DATA],G60,dados[ATIVIDADE],$H$8)","v":0},{"$f":"IFERROR(AVERAGEIFS(dados[Milhas por Galão],dados[DATA],G60,dados[ATIVIDADE],$I$8),NA())","v":{"$error":"#N/A"}},{"$f":"IFERROR(AVERAGEIFS(dados[¢/MILHA],dados[DATA],G60,dados[ATIVIDADE],$J$8),NA())","v":{"$error":"#N/A"}}]
[{"$nulls":5},52,"2012-06-21",{"$f":"SUMIFS(dados[MILHAS],dados[DATA],G61,dados[ATIVIDADE],$H$8)","v":0},{"$f":"IFERROR(AVERAGEIFS(dados[Milhas por Galão],dados[DATA],G61,dados[ATIVIDADE],$I$8),NA())","v":{"$error":"#N/A"}},{"$f":"IFERROR(AVERAGEIFS(dados[¢/MILHA],dados[DATA],G61,dados[ATIVIDADE],$J$8),NA())","v":{"$error":"#N/A"}}]
[{"$nulls":5},53,"2012-06-22",{"$f":"SUMIFS(dados[MILHAS],dados[DATA],G62,dados[ATIVIDADE],$H$8)","v":0},{"$f":"IFERROR(AVERAGEIFS(dados[Milhas por Galão],dados[DATA],G62,dados[ATIVIDADE],$I$8),NA())","v":{"$error":"#N/A"}},{"$f":"IFERROR(AVERAGEIFS(dados[¢/MILHA],dados[DATA],G62,dados[ATIVIDADE],$J$8),NA())","v":{"$error":"#N/A"}}]
[{"$nulls":5},54,"2012-06-23",{"$f":"SUMIFS(dados[MILHAS],dados[DATA],G63,dados[ATIVIDADE],$H$8)","v":0},{"$f":"IFERROR(AVERAGEIFS(dados[Milhas por Galão],dados[DATA],G63,dados[ATIVIDADE],$I$8),NA())","v":{"$error":"#N/A"}},{"$f":"IFERROR(AVERAGEIFS(dados[¢/MILHA],dados[DATA],G63,dados[ATIVIDADE],$J$8),NA())","v":{"$error":"#N/A"}}]
[{"$nulls":5},55,"2012-06-24",{"$f":"SUMIFS(dados[MILHAS],dados[DATA],G64,dados[ATIVIDADE],$H$8)","v":0},{"$f":"IFERROR(AVERAGEIFS(dados[Milhas por Galão],dados[DATA],G64,dados[ATIVIDADE],$I$8),NA())","v":{"$error":"#N/A"}},{"$f":"IFERROR(AVERAGEIFS(dados[¢/MILHA],dados[DATA],G64,dados[ATIVIDADE],$J$8),NA())","v":{"$error":"#N/A"}}]
[{"$nulls":5},56,"2012-06-25",{"$f":"SUMIFS(dados[MILHAS],dados[DATA],G65,dados[ATIVIDADE],$H$8)","v":0},{"$f":"IFERROR(AVERAGEIFS(dados[Milhas por Galão],dados[DATA],G65,dados[ATIVIDADE],$I$8),NA())","v":{"$error":"#N/A"}},{"$f":"IFERROR(AVERAGEIFS(dados[¢/MILHA],dados[DATA],G65,dados[ATIVIDADE],$J$8),NA())","v":{"$error":"#N/A"}}]
[{"$nulls":5},57,"2012-06-26",{"$f":"SUMIFS(dados[MILHAS],dados[DATA],G66,dados[ATIVIDADE],$H$8)","v":0},{"$f":"IFERROR(AVERAGEIFS(dados[Milhas por Galão],dados[DATA],G66,dados[ATIVIDADE],$I$8),NA())","v":{"$error":"#N/A"}},{"$f":"IFERROR(AVERAGEIFS(dados[¢/MILHA],dados[DATA],G66,dados[ATIVIDADE],$J$8),NA())","v":{"$error":"#N/A"}}]
[{"$nulls":5},58,"2012-06-27",{"$f":"SUMIFS(dados[MILHAS],dados[DATA],G67,dados[ATIVIDADE],$H$8)","v":0},{"$f":"IFERROR(AVERAGEIFS(dados[Milhas por Galão],dados[DATA],G67,dados[ATIVIDADE],$I$8),NA())","v":{"$error":"#N/A"}},{"$f":"IFERROR(AVERAGEIFS(dados[¢/MILHA],dados[DATA],G67,dados[ATIVIDADE],$J$8),NA())","v":{"$error":"#N/A"}}]
[{"$nulls":5},59,"2012-06-28",{"$f":"SUMIFS(dados[MILHAS],dados[DATA],G68,dados[ATIVIDADE],$H$8)","v":0},{"$f":"IFERROR(AVERAGEIFS(dados[Milhas por Galão],dados[DATA],G68,dados[ATIVIDADE],$I$8),NA())","v":{"$error":"#N/A"}},{"$f":"IFERROR(AVERAGEIFS(dados[¢/MILHA],dados[DATA],G68,dados[ATIVIDADE],$J$8),NA())","v":{"$error":"#N/A"}}]
[{"$nulls":5},60,"2012-06-29",{"$f":"SUMIFS(dados[MILHAS],dados[DATA],G69,dados[ATIVIDADE],$H$8)","v":0},{"$f":"IFERROR(AVERAGEIFS(dados[Milhas por Galão],dados[DATA],G69,dados[ATIVIDADE],$I$8),NA())","v":{"$error":"#N/A"}},{"$f":"IFERROR(AVERAGEIFS(dados[¢/MILHA],dados[DATA],G69,dados[ATIVIDADE],$J$8),NA())","v":{"$error":"#N/A"}}]